lending/lending_fUSD_20251022
["ID","MTS","AMOUNT","RATE_DAILY","PERIOD"]
[392118071,1761171043297,-151.0,0.00044,120]
[392118073,1761171043307,-260.808278,0.00044,120]
[392118075,1761171043315,-151.0,0.00044,120]
[392118077,1761171043325,-151.0,0.00044,10]
[392118079,1761171043334,-151.0,0.00044,10]
[392118081,1761171043342,-151.0,0.00044,10]
[392118083,1761171043351,-214.196709,0.00044,120]
[392118085,1761171043360,-151.0,0.00044,10]
[392118087,1761171043369,-214.196709,0.00044,120]
[392118089,1761171043378,-151.0,0.00044,10]
[392118091,1761171043387,-151.0,0.00044,10]
[392118093,1761171043395,-214.196709,0.00044,120]
[392118095,1761171043404,-214.196709,0.00044,120]
[392118097,1761171043413,-214.196709,0.00044,120]
[392118099,1761171043422,-214.196709,0.00044,120]
[392118101,1761171043431,-214.196709,0.00044,120]
[392118103,1761171043440,-214.196709,0.00044,120]
[392118104,1761171043450,-152.531857,0.00044,120]
[392118106,1761171043459,-151.0,0.00044,120]
[392118108,1761171043468,-151.0,0.00044,120]
[392118110,1761171043478,-151.0,0.00044,120]
[392118113,1761171043487,-151.0,0.00044,120]
[392118115,1761171043497,-234.84803031,0.00044,120]
[392118117,1761171043507,-151.0,0.00044,120]
[392118119,1761171043516,-151.0,0.00044,120]
[392118121,1761171043525,-151.0,0.00044,120]
[392118123,1761171043534,-151.0,0.00044,120]
[392118125,1761171043544,-151.0,0.00044,15]
[392118127,1761171043553,-151.0,0.00044,15]
[392118129,1761171043563,-152.843433,0.00044,120]
[392118131,1761171043572,-151.0,0.00044,120]
[392118133,1761171043580,-151.0,0.00044,120]
[392118135,1761171043590,-151.0,0.00044,120]
[392118137,1761171043599,-151.0,0.00044,120]
[392118139,1761171043609,-151.0,0.00044,120]
[392118141,1761171043618,-151.0,0.00044,120]
[392118143,1761171043627,-198.133824,0.00044,120]
[392118145,1761171043636,-151.0,0.00044,120]
[392118147,1761171043645,-151.0,0.00044,120]
[392118149,1761171043654,-151.0,0.00044,120]
[392118151,1761171043663,-151.0,0.00044,120]
[392118153,1761171043671,-151.0,0.00044,120]
[392118155,1761171043680,-151.0,0.00044,120]
[392118157,1761171043694,-151.0,0.00044,120]
[392118159,1761171043703,-151.0,0.00044,120]
[392118161,1761171043712,-280.715176,0.00044,120]
[392118163,1761171043721,-151.0,0.00044,120]
[392118165,1761171043731,-151.0,0.00044,120]
[392118167,1761171043740,-151.0,0.00044,120]
[392118169,1761171043749,-151.0,0.00044,120]
[392118171,1761171043758,-263.092249,0.00044,120]
[392118173,1761171043767,-151.0,0.00044,120]
[392118175,1761171043775,-151.0,0.00044,120]
[392118176,1761171043784,-151.0,0.00044,120]
[392118178,1761171043794,-151.0,0.00044,120]
[392118180,1761171043804,-151.0,0.00044,120]
[392118182,1761171043813,-299.089623,0.00044,30]
[392118184,1761171043822,-299.089623,0.00044,30]
[392118187,1761171043831,-299.089623,0.00044,30]
[392118188,1761171043840,-299.089623,0.00044,30]
[392118191,1761171043849,-299.089623,0.00044,30]
[392118193,1761171043858,-299.089623,0.00044,30]
[392118195,1761171043867,-299.089623,0.00044,30]
[392118196,1761171043876,-299.089623,0.00044,30]
[392118199,1761171043885,-151.0,0.00044,120]
[392118201,1761171043894,-151.0,0.00044,120]
[392118203,1761171043904,-151.0,0.00044,120]
[392118205,1761171043913,-151.0,0.00044,120]
[392118207,1761171043923,-151.0,0.00044,120]
[392118208,1761171043931,-151.0,0.00044,120]
[392118211,1761171043940,-151.0,0.00044,120]
[392118213,1761171043949,-151.0,0.00044,120]
[392118215,1761171043959,-151.0,0.00044,120]
[392118217,1761171043968,-151.0,0.00044,120]
[392118219,1761171043977,-268.37929,0.00044,120]
[392118221,1761171043986,-156.632878,0.00044,120]
[392118223,1761171043995,-794.91878182,0.00044002,15]
[392118225,1761171044004,-671.59,0.0004401,2]
[392118227,1761171044014,-446.57,0.00044073,2]
[392118229,1761171044023,-1055.95610423,0.00044073,15]
[392118231,1761171044032,-998.0,0.000441,30]
[392118232,1761171044041,-169.44266038,0.00044112,28]
[392118234,1761171044051,-794.91878182,0.00044114,15]
[392118237,1761171044061,-500.0,0.00044171,120]
[392118239,1761171044070,-33926.5164754,0.00044172,3]
[392118241,1761171044080,-1953.0759898,0.00044182,2]
[392118243,1761171044089,-56127.2189823,0.00044182,2]
[392118245,1761171044098,-151.0,0.00044182,120]
[392118247,1761171044107,-151.0,0.00044182,120]
[392118249,1761171044118,-257.681524,0.00044182,120]
[392118250,1761171044127,-294.859152,0.00044182,120]
[392118253,1761171044136,-151.0,0.00044182,120]
[392118254,1761171044145,-4246.0929181,0.00044182,2]
[392118257,1761171044155,-260.808278,0.00044182,120]
[392118259,1761171044164,-260.808278,0.00044182,120]
[392118261,1761171044173,-260.808278,0.00044182,120]
[392118262,1761171044183,-151.0,0.00044182,120]
[392118264,1761171044192,-260.808278,0.00044182,120]
[392118267,1761171044202,-151.0,0.00044182,10]
[392118269,1761171044211,-151.0,0.00044182,10]
[392118271,1761171044221,-214.196709,0.00044182,120]
[392118273,1761171044232,-214.196709,0.00044182,120]
[392118275,1761171044242,-214.196709,0.00044182,120]
[392118276,1761171044251,-214.196709,0.00044182,120]
[392118278,1761171044260,-167.447988,0.00044182,120]
[392118281,1761171044270,-151.0,0.00044182,15]
[392118282,1761171044279,-151.0,0.00044182,120]
[392118285,1761171044289,-300.166188,0.00044182,120]
[392118287,1761171044298,-151.0,0.00044182,120]
[392118289,1761171044308,-151.0,0.00044182,120]
[392118291,1761171044317,-151.0,0.00044182,120]
[392118292,1761171044326,-151.0,0.00044182,120]
[392118295,1761171044336,-151.0,0.00044182,120]
[392118296,1761171044345,-151.0,0.00044182,120]
[392118298,1761171044354,-299.089623,0.00044182,30]
[392118300,1761171044364,-299.089623,0.00044182,30]
[392118303,1761171044374,-299.089623,0.00044182,30]
[392118305,1761171044383,-299.089615,0.00044182,30]
[392118307,1761171044392,-272.239675,0.00044182,120]
[392118309,1761171044401,-151.0,0.00044182,120]
[392118310,1761171044410,-168.0,0.00044196,120]
[392118313,1761171044419,-800.0,0.00044212,30]
[392118315,1761171044432,-794.91878182,0.00044227,15]
[392118317,1761171044441,-794.91878182,0.00044339,15]
[392118319,1761171044450,-5654.41941257,0.00044343,3]
[392118321,1761171044461,-800.0,0.00044353,30]
[392118323,1761171044470,-2335.51496656,0.00044359,30]
[392118325,1761171044480,-7700.0,0.000444,16]
[392118327,1761171044490,-794.91878182,0.00044451,15]
[392118329,1761171044500,-5654.41941257,0.00044487,3]
[392118331,1761171044509,-5654.41941257,0.0004449,3]
[392118333,1761171044518,-900.0,0.00044497,30]
[392118336,1761171044528,-11500.0,0.000445,16]
[392118338,1761171044537,-277.68564564,0.0004452,30]
[392118340,1761171044546,-998.0,0.0004455,30]
[392118341,1761171044556,-1137.47449,0.0004455,23]
[392118343,1761171044565,-794.91878182,0.00044563,15]
[392118345,1761171044574,-177.1361685,0.00044573,10]
[392118348,1761171044583,-500.0,0.00044573,10]
[392118350,1761171044592,-500.0,0.00044573,10]
[392118351,1761171044601,-626.76977668,0.00044573,10]
[392118354,1761171044611,-200.0,0.00044573,10]
[392118356,1761171044621,-500.93648055,0.00044573,10]
[392118357,1761171044630,-500.0,0.00044573,10]
[392118359,1761171044639,-500.0,0.00044573,10]
[392118362,1761171044648,-599.27888486,0.00044573,10]
[392118363,1761171044657,-500.0,0.00044573,10]
[392118365,1761171044666,-500.0,0.00044573,10]
[392118367,1761171044675,-500.0,0.00044573,10]
[392118369,1761171044685,-23087.2267,0.00044578,60]
[392118371,1761171044695,-15400.0,0.000446,16]
[392118373,1761171044705,-794.91878182,0.00044676,15]
[392118375,1761171044714,-19200.0,0.000447,16]
[392118377,1761171044723,-858.48826633,0.00044703,30]
[392118379,1761171044733,-151.04,0.00044712,30]
[392118381,1761171044742,-413.94,0.00044712,30]
[392118383,1761171044751,-924.39405687,0.00044715,2]
[392118385,1761171044760,-794.91878182,0.00044788,15]
[392118387,1761171044770,-151.0,0.0004479,120]
[392118389,1761171044779,-151.0,0.0004479,120]
[392118391,1761171044788,-151.0,0.0004479,120]
[392118393,1761171044797,-151.0,0.0004479,120]
[392118395,1761171044806,-151.0,0.0004479,120]
[392118397,1761171044815,-151.0,0.00044792,120]
[392118399,1761171044824,-164.318258,0.00044792,120]
[392118401,1761171044834,-151.0,0.00044792,120]
[392118403,1761171044843,-151.0,0.00044792,120]
[392118405,1761171044851,-151.0,0.00044792,120]
[392118407,1761171044861,-151.0,0.00044792,120]
[392118409,1761171044870,-151.0,0.00044792,120]
[392118411,1761171044879,-260.808278,0.00044792,120]
[392118413,1761171044888,-260.808278,0.00044792,120]
[392118415,1761171044897,-260.808278,0.00044792,120]
[392118417,1761171044907,-270.247048,0.00044792,120]
[392118419,1761171044916,-260.80827,0.00044792,120]
[392118421,1761171044925,-151.0,0.00044792,10]
[392118422,1761171044934,-151.0,0.00044792,10]
[392118423,1761171044944,-214.196709,0.00044792,120]
[392118424,1761171044953,-214.196709,0.00044792,120]
[392118425,1761171044962,-214.196709,0.00044792,120]
[392118426,1761171044971,-214.196705,0.00044792,120]
[392118427,1761171044981,-151.0,0.00044792,15]
[392118428,1761171044991,-151.0,0.00044792,120]
[392118429,1761171045000,-500.0,0.00044799,120]
[392118431,1761171045009,-500.0,0.00044799,120]
[392118433,1761171045018,-500.0,0.00044799,120]
[392118435,1761171045028,-37801.76605369,0.000448,2]
[392118437,1761171045037,-283.560052,0.000448,120]
[392118439,1761171045047,-151.0,0.000448,120]
[392118441,1761171045057,-3800.0,0.000448,16]
[392118443,1761171045066,-151.0,0.00044802,120]
[392118445,1761171045075,-818.0,0.00044802,2]
[392118447,1761171045084,-572.0,0.00044802,2]
[392118449,1761171045093,-3411.0,0.00044802,2]
[392118451,1761171045102,-1591.0,0.00044802,2]
[392118453,1761171045112,-1311.0,0.00044802,2]
[392118455,1761171045121,-1269.0,0.00044802,2]
[392118457,1761171045130,-500.0,0.00044803,30]
[392118459,1761171045139,-1280.33083805,0.00044824,30]
[392118461,1761171045148,-900.0,0.00044846,30]
[392118463,1761171045157,-900.0,0.00044872,30]
[392118465,1761171045166,-151.0,0.0004489,120]
[392118467,1761171045175,-268.380152,0.0004489,120]
[392118469,1761171045184,-686.0,0.00044898,7]
[392118471,1761171045193,-166.92346812,0.00044899,17]
[392118473,1761171045203,-1000.0,0.00044899,30]
[392118488,1761171045331,-151.0,0.000449,120]
[392118490,1761171045341,-151.0,0.000449,120]
[392118492,1761171045350,-151.0,0.000449,120]
[392118494,1761171045360,-151.0,0.000449,120]
[392118496,1761171045369,-151.0,0.000449,120]
[392118498,1761171045379,-151.0,0.000449,120]
[392118500,1761171045388,-151.0,0.000449,120]
[392118502,1761171045397,-151.0,0.000449,120]
[392118504,1761171045406,-151.0,0.000449,120]
[392118506,1761171045415,-151.0,0.000449,120]
[392118508,1761171045425,-151.0,0.000449,120]
[392118510,1761171045441,-151.0,0.000449,120]
[392118512,1761171045450,-151.0,0.000449,120]
[392118515,1761171045460,-151.0,0.000449,120]
[392118517,1761171045469,-153.943226,0.000449,120]
[392118519,1761171045479,-794.91878182,0.000449,15]
[392118521,1761171045489,-3800.0,0.000449,16]
[392118522,1761171045499,-1055.95610423,0.000449,15]
[392118525,1761171045508,-2619.72912516,0.000449,2]
[392118527,1761171045517,-170.89898098,0.000449,2]
[392118528,1761171045527,-1110.68150558,0.00044921,30]
[392118531,1761171045536,-169.44266038,0.00044942,28]
[392118532,1761171045545,-923.80412501,0.00044948,30]
[392118534,1761171045555,-527.3021771,0.00044956,30]
[392118536,1761171045564,-292.398873,0.00044979,120]
[392118538,1761171045573,-151.0,0.00044979,120]
[392118540,1761171045583,-151.0,0.0004498,120]
[392118542,1761171045592,-151.0,0.0004498,120]
[392118544,1761171045601,-200.0,0.00044987,60]
[392118546,1761171045610,-200.0,0.00044987,60]
[392118548,1761171045619,-150.0,0.00044987,60]
[392118550,1761171045628,-150.0,0.00044987,60]
[392118552,1761171045637,-231.3807159,0.00044987,60]
[392118554,1761171045647,-150.0,0.00044987,60]
[392118556,1761171045656,-150.0,0.00044987,60]
[392118558,1761171045666,-208.7829731,0.00044987,60]
[392118560,1761171045675,-500.0,0.00044987,60]
[392118562,1761171045685,-150.0,0.00044987,60]
[392118564,1761171045698,-250.0,0.00044987,60]
[392118566,1761171045707,-150.0,0.00044987,60]
[392118568,1761171045716,-300.0,0.00044989,30]
[392118570,1761171045726,-151.0,0.00044989,120]
[392118572,1761171045736,-500.0,0.00044989,120]
[392118574,1761171045746,-500.0,0.00044989,120]
[392118576,1761171045755,-151.0,0.0004499,120]
[392118578,1761171045764,-151.0,0.0004499,120]
[392118580,1761171045774,-151.0,0.0004499,120]
[392118582,1761171045783,-151.0,0.0004499,120]
[392118584,1761171045792,-152.318234,0.0004499,120]
[392118586,1761171045801,-151.0,0.0004499,120]
[392118588,1761171045810,-151.0,0.0004499,120]
[392118590,1761171045819,-151.0,0.0004499,120]
[392118592,1761171045828,-151.0,0.0004499,120]
[392118594,1761171045838,-151.0,0.0004499,120]
[392118596,1761171045847,-300.0,0.00044999,30]
[392118598,1761171045856,-999.0,0.00044999,120]
[392118600,1761171045865,-250.0,0.00044999,120]
[392118602,1761171045875,-135.95537544,0.00044999,120]
[392118665,1761171046432,-404.492077,0.0004399,120]
[392118667,1761171046443,-174.27086605,0.0004399,120]
[392118676,1761171046512,-153.0,0.00039134,90]
[392118678,1761171046521,-150.35276791,0.0004399,120]
[392118682,1761171046552,-79.86844304,0.0004399,120]
[392118684,1761171046562,-404.492077,0.0004399,120]
[392118686,1761171046571,-404.492077,0.0004399,120]
[392118688,1761171046580,-404.492077,0.00044,120]
[392118690,1761171046589,-260.71634079,0.00044,120]
[392118692,1761171046600,-143.77573621,0.00044,120]
[392118694,1761171046609,-404.492077,0.00044,120]
[392118696,1761171046618,-173.63253824,0.00044,120]
[392118797,1761171723306,-163.74396215,0.00022,7]
[392118798,1761171725975,-286.29908622,0.00022,7]
[392118799,1761171728112,-183.00646124,0.00022,7]
[392118800,1761171732025,-348.39250425,0.00022,7]
[392118801,1761171735243,-151.60749575,0.00022,7]
[392118802,1761171737460,-297.63213983,0.00022,7]
[392118803,1761171753356,-189.72,0.00021,3]
[392118804,1761171798302,-160.29162638,0.00021,3]
[392118805,1761171801668,-185.42162884,0.00021,3]
[392118806,1761171804433,-300.0,0.00021,3]
[392118807,1761171907856,49750.0,0.00015,2]
[392118808,1761171907885,832090.73653708,0.00015,2]
[392118809,1761171918848,-164.56674478,0.00021,3]
[392118810,1761171918870,-121.96080089,0.00021,2]
[392118812,1761171948288,-260.28,0.0002,2]
[392118813,1761171954235,-570.94608402,0.0002,2]
[392118814,1761171954256,-32.06111938,0.00021,2]
[392118818,1761172033114,-155.85060082,0.00021,2]
[392118819,1761172040082,-323.13394015,0.00021,2]
[392118820,1761172040104,-838.62195738,0.000219,2]
[392118823,1761172047786,261.83,0.00013699,2]
[392118834,1761172145129,-261.83,0.00020187,2]
[392118835,1761172145153,-1200.0,0.00021899,2]
[392118836,1761172145176,-300.0,0.00021899,2]
[392118837,1761172145197,-5535.04638497,0.000219,2]
[392118838,1761172145219,-201.98800282,0.000219,2]
[392118839,1761172145240,-151.0,0.000219,2]
[392118840,1761172145261,-151.0,0.000219,2]
[392118841,1761172145283,-461.45626443,0.00022,7]
[392118842,1761172153115,-228.66690578,0.000219,2]
[392118843,1761172153143,-257.90010386,0.000219,2]
[392118844,1761172153167,-1107.86208613,0.00022,7]
[392118845,1761172153192,-8740.229634,0.00022885,2]
[392118846,1761172153217,-2000.0,0.00023,17]
[392118847,1761172153240,-286.52754567,0.000231,2]
[392118848,1761172153268,-781.46865518,0.000231,2]
[392118849,1761172153292,-1314.0,0.00023799,2]
[392118850,1761172153317,-420.0,0.00023799,2]
[392118851,1761172153342,-500.0,0.00024932,2]
[392118852,1761172153365,-503.06927705,0.00025,7]
[392118853,1761172153389,-587.0,0.00025865,2]
[392118854,1761172153413,-1200.0,0.00026343,2]
[392118855,1761172153435,-300.0,0.00026343,2]
[392118856,1761172153460,-7188.37924514,0.00026478,2]
[392118857,1761172153489,-261.83,0.00026676,2]
[392118858,1761172153513,-201.9880028,0.00026887,2]
[392118859,1761172153536,-500.96828797,0.00027,60]
[392118860,1761172153560,-1539.00060072,0.00028,2]
[392118861,1761172153584,-357.0,0.00028109,2]
[392118862,1761172153608,-300.0,0.00028499,2]
[392118863,1761172153632,-1680.0,0.00028626,2]
[392118864,1761172153654,-566.14072411,0.00029,5]
[392118865,1761172153675,-500.0,0.000298,5]
[392118866,1761172153703,-233.43589981,0.0002999,2]
[392118867,1761172153727,-183.54,0.00030557,2]
[392118868,1761172153750,-4595.42433667,0.00030733,2]
[392118869,1761172153773,-176.0,0.00031,120]
[392118870,1761172153797,-300.0,0.00031,2]
[392118871,1761172153822,-500.0,0.00031004,7]
[392118872,1761172153847,-505.8601711,0.00031105,2]
[392118873,1761172153875,-500.0,0.00031105,2]
[392118874,1761172153906,-500.0,0.00031105,2]
[392118875,1761172153934,-500.0,0.00031105,2]
[392118876,1761172153959,-500.0,0.00031105,2]
[392118877,1761172153986,-444.49778101,0.00031105,2]
[392118878,1761172157091,-55.50221899,0.00031105,2]
[392118879,1761172157120,-500.0,0.00031105,2]
[392118880,1761172157144,-500.0,0.00031105,2]
[392118881,1761172157167,-500.0,0.00031105,2]
[392118882,1761172157191,-500.0,0.00031105,2]
[392118883,1761172157218,-500.0,0.00031105,2]
[392118884,1761172157245,-500.0,0.00031105,2]
[392118885,1761172157269,-500.0,0.00031105,2]
[392118886,1761172157295,-500.0,0.00031105,2]
[392118887,1761172157320,-500.0,0.00031105,2]
[392118888,1761172157344,-500.0,0.00031105,2]
[392118889,1761172157370,-500.0,0.00031105,2]
[392118890,1761172157395,-500.0,0.00031105,2]
[392118891,1761172157420,-500.0,0.00031105,2]
[392118892,1761172157445,-500.0,0.00031105,2]
[392118893,1761172157471,-500.0,0.00031105,2]
[392118894,1761172157499,-500.0,0.00031105,2]
[392118895,1761172157530,-500.0,0.00031105,2]
[392118896,1761172157556,-500.0,0.00031105,2]
[392118897,1761172157581,-500.0,0.00031105,2]
[392118898,1761172157605,-500.0,0.00031105,2]
[392118899,1761172157630,-500.0,0.00031105,2]
[392118900,1761172157656,-174.14068241,0.00031105,2]
[392118901,1761172157681,-500.0,0.00031105,2]
[392118902,1761172157705,-500.0,0.00031105,2]
[392118903,1761172157729,-500.0,0.00031105,2]
[392118904,1761172157753,-500.0,0.00031105,2]
[392118905,1761172157776,-500.0,0.00031105,2]
[392118906,1761172157800,-500.0,0.00031105,2]
[392118907,1761172157825,-500.0,0.00031105,2]
[392118908,1761172157849,-500.0,0.00031105,2]
[392118909,1761172157875,-500.0,0.00031105,2]
[392118910,1761172157902,-500.0,0.00031105,2]
[392118911,1761172157927,-500.0,0.00031105,2]
[392118912,1761172157952,-500.0,0.00031105,2]
[392118913,1761172157977,-500.0,0.00031105,2]
[392118914,1761172158175,-500.0,0.00031105,2]
[392118915,1761172158200,-500.0,0.00031105,2]
[392118916,1761172158224,-500.0,0.00031105,2]
[392118917,1761172158246,-500.0,0.00031105,2]
[392118918,1761172158270,-450.0,0.00031105,2]
[392118919,1761172158292,-500.0,0.00031105,2]
[392118920,1761172158315,-500.0,0.00031105,2]
[392118921,1761172158336,-2351.0,0.00031106,3]
[392118922,1761172158357,-527.95780828,0.00031504,7]
[392118923,1761172158378,-201.9880028,0.00031873,2]
[392118924,1761172158399,-792.77604947,0.00031973,2]
[392118925,1761172158419,-813.24151246,0.00032199,7]
[392118926,1761172158439,-8048.22832559,0.00032232,2]
[392118940,1761172232391,-151.0,0.00031407,2]
[392118941,1761172232400,-143.46137287,0.00031407,2]
[392118944,1761172232425,-52.4386182,0.00031407,2]
[392118946,1761172232437,-150.0,0.00032232,2]
[392118948,1761172232447,-1951.76167441,0.00032232,2]
[392118949,1761172232457,-709.123,0.00032635,33]
[392118950,1761172232467,-641.72016527,0.00032763,2]
[392118951,1761172232477,-500.0,0.00032926,7]
[392118952,1761172232488,-500.0,0.00033121,7]
[392118953,1761172232498,-261.83,0.00033165,2]
[392118954,1761172232508,-991.66709154,0.00033387,7]
[392118955,1761172232519,-184.2975,0.00033598,2]
[392118956,1761172232529,-825.08226341,0.0003373,3]
[392118957,1761172232541,-666.0,0.0003373,3]
[392118958,1761172232553,-108.91773659,0.0003373,3]
[392118959,1761172232563,-3485.43956591,0.00033731,2]
[392118960,1761172232674,-111.69337521,0.00033731,2]
[392118961,1761172232686,-2402.27705888,0.00033731,2]
[392118962,1761172232697,-500.0,0.00033731,30]
[392118963,1761172232706,-500.0,0.00033804,7]
[392118964,1761172232716,-8788.13137754,0.00033999,2]
[392118965,1761172232726,-500.0,0.00034279,30]
[392118966,1761172232735,-500.0,0.00034478,7]
[392118967,1761172232745,-500.0,0.00034827,30]
[392118968,1761172232754,-500.0,0.00035375,30]
[392118969,1761172232764,-500.0,0.00035375,30]
[392118970,1761172232773,-650.01162638,0.00035455,120]
[392118971,1761172232782,-200.0,0.0003556,2]
[392118972,1761172232792,-632.95153767,0.00035738,6]
[392118973,1761172232801,-9356.58012118,0.00035738,6]
[392118974,1761172232811,-500.0,0.00035816,30]
[392118975,1761172232820,-196.32862,0.00035888,30]
[392118976,1761172232830,-500.0,0.00035923,30]
[392118978,1761172232840,-196.32862,0.00036088,30]
[392118980,1761172232849,-500.0,0.00036142,30]
[392118981,1761172232859,-21069.91,0.00036201,2]
[392118984,1761172232876,-250.0,0.00036218,2]
[392118985,1761172232888,-196.32862,0.00036288,30]
[392118986,1761172232898,-2240.0,0.0003636,3]
[392118987,1761172232908,-196.32862,0.00036488,30]
[392118988,1761172232918,-196.32862,0.00036688,30]
[392118989,1761172232929,-196.32862,0.00036888,30]
[392118990,1761172232939,-654.4287,0.00036888,7]
[392118991,1761172232949,-3480.0,0.000369,2]
[392118992,1761172232959,-1000.0,0.00036929,2]
[392118993,1761172232969,-196.32862,0.00037088,30]
[392118994,1761172232979,-500.0,0.00037113,30]
[392118995,1761172232990,-176.25397829,0.000372,120]
[392118996,1761172233000,-595.15,0.00037233,2]
[392118997,1761172233010,-196.32862,0.00037288,30]
[392118998,1761172233020,-666.0,0.00037351,3]
[392118999,1761172233030,-303.21,0.00037454,60]
[392119000,1761172233045,-196.32862,0.00037488,30]
[392119001,1761172233055,-166.66,0.00037548,2]
[392119002,1761172233067,-196.32862,0.00037688,30]
[392119003,1761172233079,-5513.0,0.000377,3]
[392119004,1761172233089,-196.32862,0.00037888,30]
[392119005,1761172233100,-160.43,0.00038079,2]
[392119006,1761172233112,-196.32862,0.00038088,30]
[392119007,1761172233123,-183.54,0.00038196,2]
[392119008,1761172233134,-500.0,0.00038284,30]
[392119009,1761172233144,-196.32862,0.00038288,30]
[392119010,1761172233154,-1000.0,0.00038314,2]
[392119011,1761172233164,-153.0,0.00038318,90]
[392119012,1761172233175,-5513.0,0.000384,5]
[392119013,1761172233185,-196.32862,0.00038488,30]
[392119014,1761172233195,-500.0,0.00038546,30]
[392119015,1761172233205,-196.32862,0.00038688,30]
[392119016,1761172233218,-166.66,0.00038788,2]
[392119017,1761172233228,-500.0,0.00038811,30]
[392119018,1761172233239,-500.0,0.00038816,30]
[392119019,1761172233249,-303.21,0.00038882,60]
[392119020,1761172233259,-780.65360533,0.00038925,30]
[392119021,1761172233273,-476.13251256,0.00038925,30]
[392119022,1761172233284,-1143.38384372,0.00039,2]
[392119023,1761172233295,-2500.0,0.00039,90]
[392119024,1761172233306,-500.0,0.00039034,2]
[392119025,1761172233317,-196.32862,0.00039088,30]
[392119026,1761172233327,-2241.0,0.00039194,5]
[392119027,1761172233338,-500.0,0.0003923,30]
[392119028,1761172233348,-196.32862,0.00039288,30]
[392119029,1761172233358,-196.32862,0.00039488,30]
[392119030,1761172233368,-500.0,0.00039513,5]
[392119031,1761172233379,-525.46413485,0.00039513,5]
[392119032,1761172233389,-575.20120145,0.00039513,5]
[392119033,1761172233399,-500.0,0.00039513,5]
[392119034,1761172233410,-3068.20191257,0.00039598,2]
[392119035,1761172233421,-160.06782634,0.000396,5]
[392119036,1761172233432,-500.56534583,0.000396,5]
[392119037,1761172233442,-574.97461915,0.000396,5]
[392119038,1761172233452,-500.0,0.000396,5]
[392119039,1761172233463,-503.64435126,0.000396,5]
[392119040,1761172233474,-500.0,0.00039639,30]
[392119041,1761172233485,-261.83,0.00039654,2]
[392119042,1761172233495,-196.32862,0.00039688,30]
[392119043,1761172233506,-1000.0,0.00039699,2]
[392119044,1761172233516,-196.32862,0.00039888,30]
[392119045,1761172233526,-2165.19340838,0.0004,5]
[392119046,1761172233537,-166.66,0.00040027,2]
[392119047,1761172233547,-1000.0,0.0004006,5]
[392119048,1761172233558,-1000.0,0.0004006,5]
[392119049,1761172233568,-196.32862,0.00040088,30]
[392119050,1761172233579,-500.0,0.00040133,5]
[392119051,1761172233589,-196.32862,0.00040288,30]
[392119052,1761172233599,-303.21,0.00040309,60]
[392119053,1761172233609,-150.00000001,0.00040488,4]
[392119054,1761172233619,-290.75041273,0.00040488,4]
[392119055,1761172233629,-150.0,0.00040488,4]
[392119056,1761172233639,-196.32862,0.00040488,30]
[392119057,1761172233649,-1500.0,0.00040608,5]